fUST/lending_fUST_20250625
["ID","MTS","AMOUNT","RATE_DAILY","PERIOD"]
[367573284,1750863052463,-322.6576842,0.00017856,2]
[367576868,1750863193617,3101.366331,0.00023,30]
[367576872,1750863408740,163.909859,0.00013699,2]
[367576874,1750863614749,649.06586669,0.00022335,30]
[367576875,1750863724806,17898.0263045,0.00015445,2]
[367576876,1750863724830,7001.9736955,0.00015445,2]
[367576934,1750864231925,-2094.57271726,0.00016344,2]
[367576935,1750864231935,-597.92,0.00016435,3]
[367576936,1750864231944,-298.96,0.00016435,3]
[367576937,1750864231953,-896.9,0.00016435,3]
[367576938,1750864231963,-300.0,0.00016438,2]
[367576939,1750864231972,-300.0,0.00016438,2]
[367576940,1750864231981,-747.0,0.00016438,2]
[367576941,1750864231990,-5858.06939533,0.00016439,2]
[367576942,1750864232140,-1200.0,0.0001644,2]
[367576943,1750864232151,-364.55914982,0.0001644,2]
[367576944,1750864232160,-460.0,0.0001644,2]
[367576945,1750864232170,-460.0,0.0001644,2]
[367576946,1750864232179,-460.0,0.0001644,2]
[367576947,1750864232189,-460.0,0.0001644,2]
[367576948,1750864232198,-460.0,0.0001644,2]
[367576949,1750864232207,-851.64541106,0.0001644,2]
[367576995,1750864237837,-190.25072929,0.00016438,2]
[367576997,1750864237847,-325.23482509,0.00016438,2]
[367576999,1750864237857,-204.91979871,0.00016438,2]
[367577001,1750864237866,-495.28659869,0.00016438,2]
[367577003,1750864237875,-500.0,0.00016438,2]
[367577006,1750864237884,-243.63891393,0.00016438,2]
[367577009,1750864237900,-48.35615815,0.00016438,2]
[367577012,1750864237909,-500.0,0.00016438,2]
[367577014,1750864237918,-359.99319635,0.00016438,2]
[367577017,1750864237929,-140.00680365,0.00016438,2]
[367577018,1750864237938,-500.0,0.00016438,2]
[367577019,1750864237947,-275.53235954,0.00016438,2]
[367577020,1750864237957,-500.0,0.00016438,2]
[367577021,1750864237968,-500.0,0.00016438,2]
[367577022,1750864237977,-500.0,0.00016438,2]
[367577023,1750864237986,-500.0,0.00016438,2]
[367577024,1750864237996,-500.0,0.00016438,2]
[367577025,1750864238004,-206.62668125,0.00016438,2]
[367577026,1750864238016,-293.37331875,0.00016438,2]
[367577027,1750864238025,-142.79305893,0.00016438,2]
[367577028,1750864238037,-357.20694107,0.00016438,2]
[367577029,1750864238046,-500.0,0.00016438,2]
[367577030,1750864238055,-339.01069388,0.00016438,2]
[367577031,1750864238066,-160.98930612,0.00016438,2]
[367577032,1750864238075,-416.50704988,0.00016438,2]
[367577033,1750864238086,-122.22478446,0.00016438,2]
[367577034,1750864238095,-500.0,0.00016438,2]
[367577035,1750864238103,-500.0,0.00016438,2]
[367577036,1750864238112,-500.0,0.00016438,2]
[367577037,1750864238122,-1752.05458894,0.0001644,2]
[367577038,1750864238131,-460.0,0.0001644,2]
[367577039,1750864238140,-2715.94,0.0001644,2]
[367577040,1750864238149,-2207.6,0.0001644,2]
[367577041,1750864238158,-460.0,0.0001644,2]
[367577042,1750864238167,-181.82,0.0001644,2]
[367577043,1750864238176,-118.4006266,0.0001644,2]
[367577044,1750864238186,-7580.6393734,0.0001644,2]
[367577045,1750864238195,-460.0,0.0001644,2]
[367577046,1750864238204,-843.0,0.0001644,2]
[367577047,1750864238217,-460.0,0.00016441,2]
[367577048,1750864238226,-460.0,0.00016441,2]
[367577049,1750864238235,-460.0,0.00016441,2]
[367577050,1750864238244,-460.0,0.00016441,2]
[367577051,1750864238253,-460.0,0.00016441,2]
[367577052,1750864238263,-460.0,0.00016441,2]
[367577053,1750864238272,-460.0,0.00016441,2]
[367577054,1750864238281,-460.0,0.00016441,2]
[367577056,1750864238301,-289.1306672,0.00016441,2]
[367577058,1750864238312,-460.0,0.00016441,2]
[367577060,1750864238321,-285.9212687,0.00016441,2]
[367577062,1750864238331,-460.0,0.00016441,2]
[367577064,1750864238340,-206.1086907,0.00016441,2]
[367577067,1750864238363,-253.8913093,0.00016441,2]
[367577069,1750864238373,-406.81670028,0.00016441,2]
[367577071,1750864238383,-584.26,0.00016441,2]
[367577073,1750864238393,-460.0,0.00016441,2]
[367577075,1750864238403,-460.0,0.00016441,2]
[367577077,1750864238412,-373.19884534,0.00016441,2]
[367577079,1750864238422,-500.0,0.00016441,2]
[367577081,1750864238433,-562.00818915,0.00016441,2]
[367577083,1750864238443,-154.38006377,0.00016441,2]
[367577084,1750864238453,-460.0,0.00016442,2]
[367577085,1750864238464,-1225.05,0.00016442,2]
[367577086,1750864238474,-615.62,0.00016442,2]
[367577088,1750864238483,-5684.20955121,0.00016442,2]
[367577090,1750864238498,-4283.16338576,0.00016442,2]
[367577092,1750864238511,-725.79706303,0.00016442,2]
[367577094,1750864238521,-460.0,0.00016442,2]
[367577096,1750864238531,-4274.86887239,0.00016442,2]
[367577196,1750864240151,-539.9936,0.0001644,2]
[367577199,1750864240160,-19.4864,0.00016442,2]
[367577202,1750864240172,-984.84,0.00016442,2]
[367577205,1750864240184,-431.8799351,0.00016442,2]
[367577209,1750864240196,-387.37479251,0.00016442,2]
[367577213,1750864240210,-460.0,0.00016442,2]
[367577216,1750864240222,-657.41,0.00016442,2]
[367577218,1750864240231,-460.0,0.00016442,2]
[367577221,1750864240241,-460.0,0.00016442,2]
[367577224,1750864240251,-7790.42382313,0.00016442,2]
[367577227,1750864240263,-2408.0,0.00016442,2]
[367577230,1750864240274,-2781.94096035,0.00016442,2]
[367577424,1750864242984,-876.33521652,0.00016442,2]
[367577426,1750864242994,-460.0,0.00016442,2]
[367577428,1750864243003,-13725.49,0.00016442,2]
[367577430,1750864243013,-2227.33,0.00016442,2]
[367577433,1750864243022,-1356.31,0.00016442,2]
[367577435,1750864243031,-1082.51,0.00016442,2]
[367577437,1750864243041,-460.0,0.00016442,2]
[367577438,1750864243050,-460.0,0.00016442,2]
[367577462,1750864243059,-7508.69,0.00016442,2]
[367577464,1750864243237,-460.0,0.00016442,2]
[367577466,1750864243247,-460.0,0.00016442,2]
[367577468,1750864243257,-460.0,0.00016442,2]
[367577470,1750864243267,-460.0,0.00016442,2]
[367577472,1750864243276,-460.0,0.00016442,2]
[367577474,1750864243289,-498.45,0.00016442,2]
[367577476,1750864243299,-460.0,0.00016442,2]
[367577478,1750864243308,-878.98,0.00016442,2]
[367577480,1750864243317,-1102.06,0.00016442,2]
[367577482,1750864243327,-460.0,0.00016442,2]
[367577485,1750864243336,-460.0,0.00016442,2]
[367577487,1750864243345,-1124.66,0.00016442,2]
[367577489,1750864243358,-460.0,0.00016442,2]
[367577491,1750864243368,-460.0,0.00016443,2]
[367577493,1750864243377,-460.0,0.00016443,2]
[367577495,1750864243386,-510.57,0.00016443,2]
[367577497,1750864243395,-350.56646888,0.00016443,2]
[367577499,1750864243405,-460.0,0.00016443,2]
[367577501,1750864243414,-460.0,0.00016443,2]
[367577503,1750864243423,-460.0,0.00016443,2]
[367577505,1750864243433,-460.0,0.00016443,2]
[367577507,1750864243443,-873.93,0.00016443,2]
[367577509,1750864243453,-460.0,0.00016443,2]
[367577511,1750864243463,-505.91539333,0.00016443,2]
[367577513,1750864243474,-460.0,0.00016443,2]
[367577515,1750864243484,-460.0,0.00016443,2]
[367577517,1750864243494,-460.0,0.00016443,2]
[367577519,1750864243503,-453.1014368,0.00016443,2]
[367577521,1750864243513,-460.0,0.00016443,2]
[367577523,1750864243524,-460.0,0.00016443,2]
[367577525,1750864243533,-460.0,0.00016443,2]
[367577527,1750864243545,-460.0,0.00016443,2]
[367577530,1750864243554,-577.17,0.00016443,2]
[367577532,1750864243564,-460.0,0.00016443,2]
[367577534,1750864243574,-460.0,0.00016443,2]
[367577535,1750864243584,-460.0,0.00016443,2]
[367577536,1750864243593,-601.16,0.00016443,2]
[367577538,1750864243603,-460.0,0.00016443,2]
[367577541,1750864243612,-2355.22,0.00016443,2]
[367577543,1750864243622,-1885.29,0.00016443,2]
[367577545,1750864243632,-460.0,0.00016443,2]
[367577547,1750864243641,-460.0,0.00016443,2]
[367577549,1750864243651,-460.0,0.00016443,2]
[367577551,1750864243662,-460.0,0.00016443,2]
[367577552,1750864243671,-460.0,0.00016443,2]
[367577553,1750864243681,-362.22108389,0.00016443,2]
[367577555,1750864243691,-460.0,0.00016443,2]
[367577557,1750864243699,-389.36,0.00016443,2]
[367577559,1750864243709,-447.99994809,0.00016443,2]
[367577561,1750864243719,-460.0,0.00016443,2]
[367577563,1750864243728,-460.0,0.00016443,2]
[367577565,1750864243737,-460.0,0.00016443,2]
[367577567,1750864243747,-356.11947404,0.00016443,2]
[367577569,1750864243756,-362.1870503,0.00016443,2]
[367577572,1750864243778,-459.4829497,0.00016443,2]
[367577574,1750864243787,-300.0,0.00016443,2]
[367577576,1750864243796,-460.0,0.00016443,2]
[367577578,1750864243805,-460.0,0.00016443,2]
[367577580,1750864243814,-460.0,0.00016443,2]
[367577582,1750864243824,-460.0,0.00016443,2]
[367577584,1750864243833,-460.0,0.00016443,2]
[367577586,1750864243843,-460.0,0.00016443,2]
[367577588,1750864243852,-464.32054179,0.00016443,2]
[367577590,1750864243861,-809.98,0.00016443,2]
[367577592,1750864243871,-500.0,0.00016443,2]
[367577594,1750864243880,-500.0,0.00016443,2]
[367577596,1750864243889,-460.0,0.00016443,2]
[367577597,1750864243898,-45.10896223,0.00016443,2]
[367577598,1750864243909,-4097.30103777,0.00016443,2]
[367577599,1750864243918,-4142.41,0.00016443,2]
[367577600,1750864243928,-460.0,0.00016443,2]
[367577601,1750864243937,-460.0,0.00016443,2]
[367577602,1750864243947,-460.0,0.00016443,2]
[367577603,1750864243957,-460.0,0.00016443,2]
[367577604,1750864243968,-460.0,0.00016443,2]
[367577605,1750864243978,-460.0,0.00016444,2]
[367577606,1750864243987,-460.0,0.00016444,2]
[367577607,1750864243996,-250.6052694,0.00016444,2]
[367577608,1750864244006,-460.0,0.00016444,2]
[367577609,1750864244015,-460.0,0.00016444,2]
[367577610,1750864244025,-460.0,0.00016444,2]
[367577611,1750864244034,-460.0,0.00016444,2]
[367577612,1750864244043,-500.0,0.00016444,2]
[367577613,1750864244053,-500.0,0.00016444,2]
[367577614,1750864244063,-500.0,0.00016444,2]
[367577615,1750864244072,-460.0,0.00016444,2]
[367577616,1750864244081,-733.99,0.00016444,2]
[367577617,1750864244091,-733.99,0.00016444,2]
[367577618,1750864244101,-733.99,0.00016444,2]
[367577619,1750864244110,-320.0,0.00016444,2]
[367577620,1750864244119,-460.0,0.00016444,2]
[367577621,1750864244128,-460.0,0.00016444,2]
[367577622,1750864244138,-460.0,0.00016444,2]
[367577623,1750864244147,-658.73,0.00016444,2]
[367577624,1750864244156,-1383.98,0.00016444,2]
[367577625,1750864244165,-460.0,0.00016444,2]
[367577626,1750864244175,-460.0,0.00016444,2]
[367577627,1750864244184,-460.0,0.00016444,2]
[367577628,1750864244194,-460.0,0.00016444,2]
[367577629,1750864244205,-460.0,0.00016444,2]
[367577630,1750864244215,-460.0,0.00016444,2]
[367577631,1750864244225,-460.0,0.00016444,2]
[367577632,1750864244234,-460.0,0.00016444,2]
[367577633,1750864244244,-1827.71,0.00016444,2]
[367577634,1750864244253,-460.0,0.00016444,2]
[367577635,1750864244263,-245.4,0.00016444,2]
[367577636,1750864244273,-1025.94,0.00016444,2]
[367577637,1750864244283,-481.46995676,0.00016444,2]
[367577638,1750864244293,-460.0,0.00016444,2]
[367577639,1750864244302,-460.0,0.00016444,2]
[367577640,1750864244311,-521.04404761,0.00016444,2]
[367577641,1750864244321,-460.0,0.00016444,2]
[367577642,1750864244330,-906.66,0.00016444,2]
[367577643,1750864244340,-1443.68,0.00016444,2]
[367577644,1750864244349,-849.76,0.00016444,2]
[367577645,1750864244362,-460.0,0.00016444,2]
[367577646,1750864244373,-460.0,0.00016444,2]
[367577647,1750864244383,-460.0,0.00016444,2]
[367577648,1750864244392,-460.0,0.00016444,2]
[367577649,1750864244402,-7536.42,0.00016444,2]
[367577650,1750864244412,-460.0,0.00016444,2]
[367577651,1750864244422,-460.0,0.00016444,2]
[367577652,1750864244432,-460.0,0.00016444,2]
[367577653,1750864244441,-460.0,0.00016444,2]
[367577654,1750864244451,-460.0,0.00016444,2]
[367577655,1750864244461,-2422.63,0.00016444,2]
[367577656,1750864244472,-460.0,0.00016444,2]
[367577657,1750864244482,-2912.77,0.00016444,2]
[367577658,1750864244492,-2816.92,0.00016444,2]
[367577659,1750864244501,-6574.07,0.00016444,2]
[367577660,1750864244510,-205.82235683,0.00016444,2]
[367577661,1750864244519,-1557.81,0.00016444,2]
[367577662,1750864244529,-2546.83,0.00016444,2]
[367577663,1750864244539,-513.11,0.00016444,2]
[367577664,1750864244548,-460.0,0.00016444,2]
[367577665,1750864244558,-460.0,0.00016444,2]
[367577666,1750864244568,-542.58,0.00016444,2]
[367577667,1750864244577,-460.0,0.00016444,2]
[367577668,1750864244586,-500.0,0.00016444,2]
[367577669,1750864244596,-500.0,0.00016444,2]
[367577670,1750864244606,-613.3,0.00016444,2]
[367577671,1750864244615,-460.0,0.00016444,2]
[367577672,1750864244624,-4142.41,0.00016444,2]
[367577673,1750864244633,-3469.80012259,0.00016444,2]
[367577709,1750864245809,-537.2,0.00016444,2]
[367577714,1750864245844,-135.40987741,0.00016444,2]
[367577716,1750864245854,-525.74432286,0.00016444,2]
[367577718,1750864245864,-894.96,0.00016444,2]
[367577720,1750864245874,-460.0,0.00016444,2]
[367577721,1750864245884,-460.0,0.00016444,2]
[367577722,1750864245893,-460.0,0.00016444,2]
[367577723,1750864245903,-460.0,0.00016444,2]
[367577724,1750864245913,-460.0,0.00016444,2]
[367577725,1750864245922,-2194.6,0.00016444,2]
[367577726,1750864245931,-460.0,0.00016444,2]
[367577727,1750864245940,-421.6133537,0.00016444,2]
[367577728,1750864245954,-623.59,0.00016444,2]
[367577729,1750864245963,-460.0,0.00016444,2]
[367577730,1750864245973,-783.89,0.00016444,2]
[367577731,1750864245982,-460.0,0.00016444,2]
[367577732,1750864245992,-470.76,0.00016444,2]
[367577733,1750864246002,-460.0,0.00016444,2]
[367577734,1750864246011,-836.35,0.00016444,2]
[367577735,1750864246020,-460.0,0.00016444,2]
[367577736,1750864246029,-542.65,0.00016444,2]
[367577737,1750864246037,-460.0,0.00016444,2]
[367577738,1750864246047,-460.0,0.00016444,2]
[367577739,1750864246056,-285.1978338,0.00016444,2]
[367577740,1750864246065,-460.0,0.00016444,2]
[367577742,1750864246074,-2484.09,0.00016444,2]
[367577743,1750864246083,-460.0,0.00016444,2]
[367577744,1750864246092,-460.0,0.00016444,2]
[367577746,1750864246101,-460.0,0.00016444,2]
[367577748,1750864246110,-3576.61,0.00016444,2]
[367577750,1750864246119,-2250.06,0.00016444,2]
[367577752,1750864246129,-460.0,0.00016444,2]
[367577754,1750864246138,-460.0,0.00016444,2]
[367577756,1750864246148,-460.0,0.00016444,2]
[367577758,1750864246157,-498.68,0.00016444,2]
[367577760,1750864246167,-460.0,0.00016444,2]
[367577762,1750864246176,-460.0,0.00016445,2]
[367577764,1750864246186,-269.45721925,0.00016445,2]
[367577766,1750864246195,-460.0,0.00016445,2]
[367577768,1750864246205,-430.0,0.00016445,2]
[367577770,1750864246215,-213.19291487,0.00016445,2]
[367577772,1750864246225,-335.8504236,0.00016445,2]
[367577774,1750864246233,-460.0,0.00016445,2]
[367577776,1750864246242,-460.0,0.00016445,2]
[367577778,1750864246251,-460.0,0.00016445,2]
[367577780,1750864246260,-498.49564176,0.00016445,2]
[367577782,1750864246269,-418.01876866,0.00016445,2]
[367577784,1750864246279,-460.0,0.00016445,2]
[367577786,1750864246288,-520.22396548,0.00016445,2]
[367577788,1750864246298,-460.0,0.00016445,2]
[367577790,1750864246307,-460.0,0.00016445,2]
[367577792,1750864246316,-460.0,0.00016445,2]
[367577794,1750864246326,-460.0,0.00016445,2]
[367577796,1750864246336,-460.0,0.00016445,2]
[367577798,1750864246345,-460.0,0.00016445,2]
[367577800,1750864246357,-460.0,0.00016445,2]
[367577802,1750864246368,-460.0,0.00016445,2]
[367577804,1750864246377,-2112.22,0.00016445,2]
[367577806,1750864246386,-460.0,0.00016445,2]
[367577808,1750864246395,-2938.23,0.00016445,2]
[367577810,1750864246406,-789.51,0.00016445,2]
[367577812,1750864246415,-956.96,0.00016445,2]
[367577814,1750864246426,-460.0,0.00016445,2]
[367577816,1750864246436,-460.0,0.00016445,2]
[367577818,1750864246446,-495.15,0.00016445,2]
[367577820,1750864246456,-392.72,0.00016445,2]
[367577822,1750864246466,-460.0,0.00016445,2]
[367577824,1750864246475,-500.0,0.00016445,2]
[367577826,1750864246484,-500.0,0.00016445,2]
[367577828,1750864246493,-500.0,0.00016445,2]
[367577830,1750864246503,-733.99,0.00016445,2]
[367577832,1750864246512,-733.99,0.00016445,2]
[367577834,1750864246521,-733.99,0.00016445,2]
[367577836,1750864246531,-460.0,0.00016445,2]
[367577838,1750864246541,-460.0,0.00016445,2]
[367577840,1750864246551,-608.04247293,0.00016445,2]
[367577842,1750864246561,-460.0,0.00016445,2]
[367577844,1750864246571,-460.0,0.00016445,2]
[367577846,1750864246581,-2248.56,0.00016445,2]
[367577849,1750864246591,-460.0,0.00016445,2]
[367577850,1750864246600,-808.49,0.00016445,2]
[367577852,1750864246610,-460.0,0.00016445,2]
[367577854,1750864246619,-460.0,0.00016445,2]
[367577856,1750864246629,-5160.59,0.00016445,2]
[367577858,1750864246639,-460.0,0.00016445,2]
[367577861,1750864246648,-4723.5,0.00016445,2]
[367577875,1750864246773,-233.86255829,0.00016445,2]
[367577877,1750864246783,-460.0,0.00016445,2]
[367577879,1750864246792,-460.0,0.00016445,2]
[367577881,1750864246801,-460.0,0.00016445,2]
[367577883,1750864246810,-1064.83,0.00016445,2]
[367577885,1750864246819,-460.0,0.00016445,2]
[367577887,1750864246829,-460.0,0.00016445,2]
[367577889,1750864246838,-460.0,0.00016445,2]
[367577891,1750864246847,-1480.02,0.00016445,2]
[367577893,1750864246857,-460.0,0.00016445,2]
[367577895,1750864246866,-460.0,0.00016445,2]
[367577897,1750864246875,-12954.37,0.00016445,2]
[367577899,1750864246884,-460.0,0.00016445,2]
[367577901,1750864246893,-460.0,0.00016445,2]
[367577903,1750864246902,-460.0,0.00016445,2]
[367577905,1750864246911,-392.35,0.00016445,2]
[367577907,1750864246920,-1050.15798603,0.00016445,2]
[367577909,1750864246933,-642.91201397,0.00016445,2]
[367577912,1750864246942,-460.0,0.00016445,2]
[367577914,1750864246952,-500.0,0.00016445,2]
[367577916,1750864246961,-500.0,0.00016445,2]
[367577918,1750864246971,-500.0,0.00016445,2]
[367577920,1750864246981,-1649.3,0.00016445,2]
[367577922,1750864246989,-4142.41,0.00016445,2]
[367577923,1750864247000,-4142.41,0.00016445,2]
[367577926,1750864247009,-4142.41,0.00016445,2]
[367577928,1750864247019,-175.63,0.00016445,2]
[367577929,1750864247028,-460.0,0.00016445,2]
[367577932,1750864247038,-460.0,0.00016445,2]
[367577934,1750864247047,-460.0,0.00016445,2]
[367577936,1750864247056,-1066.11,0.00016445,2]
[367577938,1750864247065,-1728.39,0.00016445,2]
[367577939,1750864247074,-460.0,0.00016445,2]
[367577941,1750864247083,-227.63,0.00016446,2]
[367577944,1750864247092,-505.04274447,0.00016446,2]
[367577946,1750864247103,-460.0,0.00016446,2]
[367577948,1750864247111,-460.0,0.00016446,2]
[367577950,1750864247121,-343.26779284,0.00016446,2]
[367577952,1750864247130,-460.0,0.00016446,2]
[367577954,1750864247138,-391.43141088,0.00016446,2]
[367577956,1750864247147,-460.0,0.00016446,2]
[367577958,1750864247156,-460.0,0.00016446,2]
[367577960,1750864247165,-460.0,0.00016446,2]
[367577962,1750864247174,-460.0,0.00016446,2]
[367577964,1750864247183,-500.0,0.00016446,2]
[367577966,1750864247193,-460.0,0.00016446,2]
[367577968,1750864247203,-460.0,0.00016446,2]
[367577970,1750864247213,-460.0,0.00016446,2]
[367577972,1750864247224,-460.0,0.00016446,2]
[367577974,1750864247233,-460.0,0.00016446,2]
[367577976,1750864247242,-268.17911562,0.00016446,2]
[367577978,1750864247256,-460.0,0.00016446,2]
[367577980,1750864247266,-460.0,0.00016446,2]
[367577982,1750864247276,-371.44,0.00016446,2]
[367577984,1750864247286,-460.0,0.00016446,2]
[367577986,1750864247295,-547.43681651,0.00016446,2]
[367577988,1750864247305,-460.0,0.00016446,2]
[367577990,1750864247314,-460.0,0.00016446,2]
[367577993,1750864247323,-460.0,0.00016446,2]
[367577994,1750864247332,-356.66816649,0.00016446,2]
[367577996,1750864247342,-460.0,0.00016446,2]
[367577998,1750864247350,-460.0,0.00016446,2]
[367578000,1750864247363,-460.0,0.00016446,2]
[367578002,1750864247372,-460.0,0.00016446,2]
[367578004,1750864247382,-460.0,0.00016446,2]
[367578006,1750864247392,-460.0,0.00016446,2]
[367578008,1750864247401,-460.0,0.00016446,2]
[367578010,1750864247411,-460.0,0.00016446,2]
[367578013,1750864247421,-460.0,0.00016446,2]
[367578014,1750864247431,-460.0,0.00016446,2]
[367578016,1750864247441,-493.56164806,0.00016446,2]
[367578018,1750864247450,-460.0,0.00016446,2]
[367578020,1750864247461,-176.27061953,0.00016448,2]
[367578022,1750864247471,-500.0,0.00016472,2]
[367578024,1750864247480,-4142.41,0.00016472,2]
[367578026,1750864247489,-574.19405804,0.00016473,2]
[367578028,1750864247499,-500.0,0.00016473,2]
[367578030,1750864247508,-504.37464462,0.00016473,2]
[367578032,1750864247517,-864.47246905,0.00016529,2]
[367578051,1750864247731,-1230.1002482,0.00016529,2]
[367578052,1750864247742,-207.4,0.00016637,2]
[367578053,1750864247751,-5000.0,0.00016637,2]
[367578054,1750864247761,-25000.0,0.00016637,2]
[367578055,1750864247770,-236.94,0.00016656,2]
[367578056,1750864247780,-733.99,0.00016656,2]
[367578057,1750864247789,-733.99,0.00016656,2]
[367578058,1750864247799,-500.0,0.00016656,2]
[367578059,1750864247809,-4142.41,0.00016656,2]
[367578060,1750864247818,-297.17217582,0.00016714,2]
[367578061,1750864247828,-460.0,0.00016714,2]
[367578062,1750864247837,-460.0,0.00016714,2]
[367578063,1750864247846,-460.0,0.00016714,2]
[367578064,1750864247855,-2603.7,0.00016714,2]
[367578065,1750864247866,-460.0,0.00016714,2]
[367578066,1750864247875,-2715.94,0.00016714,2]
[367578067,1750864247885,-2207.6,0.00016714,2]
[367578068,1750864247894,-7699.04,0.00016714,2]
[367578069,1750864247904,-843.0,0.00016714,2]
[367578070,1750864247913,-2094.57271725,0.00016715,2]
[367578071,1750864247923,-460.0,0.00016715,2]
[367578072,1750864247932,-460.0,0.00016715,2]
[367578073,1750864247941,-460.0,0.00016715,2]
[367578074,1750864247950,-460.0,0.00016715,2]
[367578075,1750864247960,-381.30568454,0.00016715,2]
[367578076,1750864247970,-460.0,0.00016715,2]
[367578077,1750864247979,-460.0,0.00016715,2]
[367578078,1750864247989,-460.0,0.00016715,2]
[367578079,1750864247998,-460.0,0.00016715,2]
[367578080,1750864248007,-460.0,0.00016715,2]
[367578081,1750864248016,-460.0,0.00016715,2]
[367578082,1750864248025,-584.26,0.00016715,2]
[367578083,1750864248035,-460.0,0.00016715,2]
[367578084,1750864248044,-460.0,0.00016715,2]
[367578085,1750864248053,-460.0,0.00016716,2]
[367578086,1750864248063,-1225.05,0.00016716,2]
[367578087,1750864248072,-615.62,0.00016716,2]
[367578088,1750864248082,-10693.17,0.00016716,2]
[367578089,1750864248091,-460.0,0.00016716,2]
[367578090,1750864248101,-6098.45,0.00016716,2]
[367578091,1750864248110,-460.0,0.00016716,2]
[367578092,1750864248119,-657.41,0.00016716,2]
[367578093,1750864248129,-460.0,0.00016716,2]
[367578094,1750864248138,-460.0,0.00016716,2]
[367578095,1750864248147,-13856.7,0.00016716,2]
[367578096,1750864248157,-460.0,0.00016716,2]
[367578097,1750864248167,-13725.49,0.00016716,2]
[367578098,1750864248177,-2227.33,0.00016716,2]
[367578099,1750864248187,-1356.31,0.00016716,2]
[367578100,1750864248196,-1082.51,0.00016716,2]
[367578101,1750864248206,-460.0,0.00016716,2]
[367578102,1750864248215,-460.0,0.00016716,2]
[367578103,1750864248226,-7508.69,0.00016716,2]
[367578104,1750864248236,-460.0,0.00016716,2]
[367578105,1750864248245,-460.0,0.00016716,2]
[367578106,1750864248255,-460.0,0.00016716,2]
[367578107,1750864248264,-460.0,0.00016716,2]
[367578108,1750864248274,-460.0,0.00016716,2]
[367578109,1750864248283,-498.45,0.00016716,2]
[367578110,1750864248292,-460.0,0.00016716,2]
[367578111,1750864248302,-878.98,0.00016716,2]
[367578112,1750864248311,-1102.06,0.00016716,2]
[367578113,1750864248321,-460.0,0.00016716,2]
[367578114,1750864248330,-260.67427,0.00016716,2]
[367578115,1750864248339,-1124.66,0.00016716,2]
[367578116,1750864248354,-356.19508703,0.00016716,2]
[367578117,1750864248367,-460.0,0.00016716,2]
[367578118,1750864248381,-460.0,0.00016717,2]
[367578119,1750864248390,-510.57,0.00016717,2]
[367578120,1750864248399,-460.0,0.00016717,2]
[367578121,1750864248412,-460.0,0.00016717,2]
[367578122,1750864248422,-460.0,0.00016717,2]
[367578123,1750864248432,-873.93,0.00016717,2]
[367578124,1750864248444,-460.0,0.00016717,2]
[367578125,1750864248455,-253.62254115,0.00016717,2]
[367578126,1750864248465,-221.51875542,0.00016717,2]
[367578127,1750864248475,-593.64795834,0.00016717,2]
[367578128,1750864248485,-323.11794743,0.00016717,2]
[367578129,1750864248494,-460.0,0.00016717,2]